fUSD/lending_fUSD_20260426
["ID","MTS","AMOUNT","RATE_DAILY","PERIOD"]
[421137338,1777147832784,-9999.99,8.403e-05,2]
[421137339,1777147832793,-299.99,8.403e-05,2]
[421137340,1777147832804,-150.99,8.403e-05,2]
[421137341,1777147832815,-999.99,8.403e-05,2]
[421137342,1777147832825,-155.362,8.425e-05,2]
[421137343,1777147832835,-478.0,8.426e-05,2]
[421137344,1777147832844,-194.58,8.428e-05,2]
[421137345,1777147832854,-403.0,8.444e-05,2]
[421137346,1777147832864,-403.0,8.444e-05,2]
[421137347,1777147832874,-9552.16786547,8.455e-05,2]
[421137348,1777147832884,-151.0,8.455e-05,2]
[421137349,1777147832894,-403.0,8.459e-05,2]
[421137350,1777147832904,-12850.00612647,8.468e-05,2]
[421137351,1777147832914,-331.0,8.472e-05,2]
[421137352,1777147832924,-157.0,8.476e-05,2]
[421137353,1777147832933,-403.0,8.479e-05,2]
[421137354,1777147832943,-151.0,8.497e-05,2]
[421137355,1777147832952,-229.80933738,8.498e-05,2]
[421137356,1777147832961,-500.0,8.498e-05,2]
[421137357,1777147832971,-500.0,8.498e-05,2]
[421137358,1777147832980,-500.0,8.498e-05,2]
[421137359,1777147832990,-500.0,8.498e-05,2]
[421137360,1777147833000,-500.0,8.498e-05,2]
[421137361,1777147833010,-500.0,8.498e-05,2]
[421137362,1777147833019,-500.0,8.498e-05,2]
[421137363,1777147833029,-500.0,8.498e-05,2]
[421137364,1777147833038,-500.0,8.498e-05,2]
[421137365,1777147833048,-500.0,8.498e-05,2]
[421137366,1777147833058,-500.0,8.498e-05,2]
[421137367,1777147833068,-500.0,8.498e-05,2]
[421137368,1777147833078,-500.0,8.498e-05,2]
[421137369,1777147833087,-500.0,8.498e-05,2]
[421137370,1777147833097,-500.0,8.498e-05,2]
[421137371,1777147833106,-500.0,8.498e-05,2]
[421137372,1777147833116,-500.0,8.498e-05,2]
[421137373,1777147833126,-500.0,8.498e-05,2]
[421137374,1777147833136,-500.0,8.498e-05,2]
[421137375,1777147833146,-500.0,8.498e-05,2]
[421137376,1777147833156,-500.0,8.498e-05,2]
[421137377,1777147833165,-500.0,8.498e-05,2]
[421137378,1777147833175,-500.0,8.498e-05,2]
[421137379,1777147833184,-277.55355978,8.498e-05,2]
[421137380,1777147833194,-500.0,8.498e-05,2]
[421137381,1777147833204,-500.0,8.498e-05,2]
[421137382,1777147833214,-500.0,8.498e-05,2]
[421137383,1777147833223,-500.0,8.499e-05,2]
[421137384,1777147833233,-500.0,8.499e-05,2]
[421137385,1777147833243,-557.53100573,8.499e-05,2]
[421137386,1777147833252,-150.0,8.499e-05,2]
[421137387,1777147833262,-500.0,8.499e-05,2]
[421137388,1777147833271,-171.74782639,8.499e-05,2]
[421137389,1777147833281,-289.3728362,8.499e-05,2]
[421137390,1777147833290,-500.0,8.499e-05,2]
[421137391,1777147833300,-500.0,8.499e-05,2]
[421137392,1777147833310,-500.0,8.499e-05,2]
[421137393,1777147833319,-500.0,8.499e-05,2]
[421137394,1777147833328,-500.0,8.499e-05,2]
[421137395,1777147833339,-517.2737971,8.499e-05,2]
[421137396,1777147833348,-500.0,8.499e-05,2]
[421137397,1777147833359,-440.0,8.5e-05,5]
[421137398,1777147833368,-464.356539,8.5e-05,2]
[421137399,1777147833378,-464.356539,8.5e-05,2]
[421137400,1777147833388,-464.356539,8.5e-05,2]
[421137401,1777147833398,-464.356539,8.5e-05,2]
[421137402,1777147833407,-457.778108,8.5e-05,2]
[421137403,1777147833417,-457.778108,8.5e-05,2]
[421137404,1777147833427,-457.778108,8.5e-05,2]
[421137405,1777147833436,-457.778108,8.5e-05,2]
[421137406,1777147833446,-151.0,8.5e-05,2]
[421137407,1777147833456,-151.0,8.5e-05,2]
[421137408,1777147833466,-151.0,8.5e-05,2]
[421137409,1777147833476,-151.0,8.5e-05,2]
[421137410,1777147833486,-151.0,8.5e-05,2]
[421137411,1777147833496,-151.0,8.5e-05,2]
[421137412,1777147833506,-403.0,8.502e-05,2]
[421137413,1777147833516,-259.0,8.506e-05,2]
[421137414,1777147833526,-9905.5980765,8.51e-05,2]
[421137415,1777147833535,-151.0,8.51e-05,2]
[421137416,1777147833545,-1000.0,8.524e-05,2]
[421137417,1777147833555,-1100.40736551,8.526e-05,2]
[421137418,1777147833564,-1090.81323997,8.526e-05,2]
[421137419,1777147833574,-1085.51756263,8.526e-05,2]
[421137420,1777147833584,-1081.21824453,8.526e-05,2]
[421137421,1777147833593,-1075.14794624,8.526e-05,2]
[421137422,1777147833603,-1137.36292306,8.526e-05,2]
[421137423,1777147833613,-1940.15203104,8.526e-05,2]
[421137424,1777147833622,-10272.10520533,8.565e-05,2]
[421137425,1777147833632,-151.0,8.565e-05,2]
[421137426,1777147833642,-403.0,8.567e-05,2]
[421137427,1777147833653,-155.17433017,8.575e-05,2]
[421137428,1777147833662,-150.0,8.575e-05,2]
[421137429,1777147833674,-150.0,8.575e-05,2]
[421137430,1777147833685,-150.0,8.575e-05,2]
[421137431,1777147833694,-150.0,8.575e-05,2]
[421137432,1777147833704,-568.24,8.579e-05,2]
[421137433,1777147833713,-571.97,8.579e-05,2]
[421137434,1777147833723,-478.05,8.579e-05,2]
[421137435,1777147833733,-478.05,8.579e-05,2]
[421137436,1777147833744,-570.49,8.579e-05,2]
[421137437,1777147833754,-478.05,8.579e-05,2]
[421137438,1777147833764,-570.49,8.579e-05,2]
[421137439,1777147833774,-570.49,8.579e-05,2]
[421137440,1777147833784,-478.05,8.579e-05,2]
[421137441,1777147833794,-570.49,8.579e-05,2]
[421137442,1777147833804,-570.49,8.579e-05,2]
[421137443,1777147833814,-568.24,8.579e-05,2]
[421137444,1777147833824,-478.05,8.579e-05,2]
[421137445,1777147833835,-478.05,8.579e-05,2]
[421137446,1777147833845,-570.49,8.579e-05,2]
[421137447,1777147833855,-478.08,8.579e-05,2]
[421137448,1777147833865,-570.49,8.579e-05,2]
[421137449,1777147833875,-570.49,8.579e-05,2]
[421137450,1777147833884,-566.48,8.579e-05,2]
[421137451,1777147833895,-568.08,8.579e-05,2]
[421137452,1777147833905,-570.49,8.579e-05,2]
[421137453,1777147833915,-568.24,8.579e-05,2]
[421137454,1777147833925,-478.05,8.579e-05,2]
[421137455,1777147833935,-332.25,8.579e-05,2]
[421137456,1777147833945,-568.24,8.579e-05,2]
[421137457,1777147833954,-570.49,8.579e-05,2]
[421137458,1777147833964,-478.05,8.579e-05,2]
[421137459,1777147833974,-570.49,8.579e-05,2]
[421137460,1777147833985,-477.69,8.579e-05,2]
[421137461,1777147833996,-392.7,8.579e-05,2]
[421137462,1777147834005,-478.05,8.579e-05,2]
[421137463,1777147834015,-570.49,8.579e-05,2]
[421137464,1777147834025,-570.49,8.579e-05,2]
[421137465,1777147834034,-499.49182673,8.579e-05,2]
[421137466,1777147834049,-70.99817327,8.579e-05,2]
[421137467,1777147834059,-3140.95,8.583e-05,2]
[421137468,1777147834068,-206.856,8.583e-05,2]
[421137469,1777147834079,-478.05,8.584e-05,2]
[421137470,1777147834089,-568.24,8.584e-05,2]
[421137471,1777147834100,-478.05,8.584e-05,2]
[421137472,1777147834109,-478.05,8.584e-05,2]
[421137473,1777147834120,-160862.35255804,8.6e-05,2]
[421137474,1777147834132,-57216.66154273,8.6e-05,2]
[421137475,1777147834145,-402.11590291,8.6e-05,2]
[421137476,1777147834177,-1110.61079819,8.6e-05,2]
[421137477,1777147834189,-620.42829203,8.6e-05,2]
[421137478,1777147834210,-1039.55708434,8.6e-05,2]
[421137491,1777147837921,-383.08942024,8.6e-05,2]
[421137492,1777147837946,-2193.9605744,8.6e-05,2]
[421137493,1777147837969,-324.1805518,8.6e-05,2]
[421137494,1777147837994,-764.8018764,8.6e-05,2]
[421137495,1777147838048,-4911.37788427,8.6e-05,2]
[421137496,1777147838071,-1650.61375639,8.6e-05,2]
[421137497,1777147838094,-1250.51494751,8.6e-05,2]
[421137498,1777147838116,-816.7756,8.6e-05,2]
[421137499,1777147838139,-1852.927,8.6e-05,2]
[421137500,1777147838255,-386.5,8.6e-05,2]
[421137502,1777147838297,-180832.66681075,8.6e-05,2]
[421137503,1777147838315,-5032.0246,8.6e-05,2]
[421137504,1777147838332,-464.356539,8.6e-05,2]
[421137505,1777147838349,-464.356539,8.6e-05,2]
[421137506,1777147838367,-464.356539,8.6e-05,2]
[421137507,1777147838384,-464.356539,8.6e-05,2]
[421137508,1777147838401,-457.778108,8.6e-05,2]
[421137509,1777147838420,-457.778108,8.6e-05,2]
[421137510,1777147838437,-457.778108,8.6e-05,2]
[421137511,1777147838455,-457.778108,8.6e-05,2]
[421137512,1777147838472,-151.0,8.6e-05,2]
[421137513,1777147838490,-151.0,8.6e-05,2]
[421137514,1777147838507,-151.0,8.6e-05,2]
[421137515,1777147838526,-151.0,8.6e-05,2]
[421137516,1777147838543,-151.0,8.6e-05,2]
[421137517,1777147838561,-151.0,8.6e-05,2]
[421137518,1777147838580,-151.633335,8.6e-05,2]
[421137519,1777147838597,-391.3609749,8.611e-05,2]
[421137520,1777147838616,-1592.91387185,8.62e-05,2]
[421137521,1777147838633,-151.0,8.62e-05,2]
[421137522,1777147838651,-500.0,8.63e-05,2]
[421137523,1777147838670,-500.0,8.646e-05,2]
[421137524,1777147838689,-562.2908788,8.673e-05,2]
[421137525,1777147838706,-500.0,8.673e-05,2]
[421137526,1777147838723,-500.0,8.673e-05,2]
[421137527,1777147838742,-500.0,8.673e-05,2]
[421137528,1777147838759,-623.37542407,8.673e-05,2]
[421137529,1777147838777,-551.17910458,8.673e-05,2]
[421137530,1777147838794,-500.0,8.673e-05,2]
[421137531,1777147838813,-151.0,8.675e-05,2]
[421137532,1777147838830,-299.58357774,8.692e-05,2]
[421137533,1777147838848,-150.0,8.692e-05,2]
[421137534,1777147838866,-207.68652229,8.695e-05,2]
[421137535,1777147838884,-1563.37047602,8.695e-05,2]
[421137536,1777147838902,-270.20796519,8.695e-05,2]
[421137537,1777147838920,-209.55590914,8.695e-05,2]
[421137538,1777147838938,-151.0,8.697e-05,2]
[421137539,1777147838956,-153.4004789,8.697e-05,2]
[421137540,1777147838974,-1081.0,8.7e-05,5]
[421137541,1777147838993,-500.0,8.7e-05,2]
[421137542,1777147839010,-500.0,8.7e-05,2]
[421137543,1777147839028,-500.0,8.7e-05,2]
[421137544,1777147839046,-500.0,8.7e-05,2]
[421137545,1777147839064,-500.0,8.7e-05,2]
[421137546,1777147839082,-500.0,8.7e-05,2]
[421137547,1777147839100,-325973.50241365,8.7e-05,2]
[421137548,1777147840290,-179812.93580595,8.7e-05,2]
[421137549,1777147840396,-15376.37444753,8.7e-05,2]
[421137550,1777147840436,-32508.88239924,8.7e-05,2]
[421137551,1777147840468,-2095.592,8.7e-05,2]
[421137552,1777147840525,-774.6985844,8.7e-05,2]
[421137587,1777147842940,-201764.42413581,8.7e-05,2]
[421137590,1777147843606,-2.18418352,8.7e-05,2]
[421137595,1777147846107,-1959.29828611,8.7e-05,2]
[421137596,1777147846123,-8510.61931298,8.7e-05,2]
[421137597,1777147846134,-68525.97040653,8.7e-05,2]
[421137605,1777147847233,-307.068435,8.7e-05,2]
[421137606,1777147847245,-303474.36069386,8.7e-05,2]
[421137607,1777147847255,-218403.19388866,8.7e-05,2]
[421137608,1777147916798,8790.47,8.25e-05,2]
[421137609,1777147916825,10000.01,8.25e-05,2]
[421137610,1777147916854,1135654.78859621,8.25e-05,2]
[421137611,1777147921311,-458.87870743,8.25e-05,2]
[421137612,1777147932023,-150.0,8.249e-05,2]
[421137613,1777147932052,-300.0,8.25e-05,2]
[421137614,1777147932081,-800.57109369,8.25e-05,2]
[421137615,1777147932109,-458.87568672,8.25e-05,2]
[421137616,1777147932137,-1032.75392759,8.25e-05,2]
[421137617,1777147939418,-4425.46966027,8.25e-05,2]
[421137618,1777147941219,-10000.01,8.25e-05,2]
[421137620,1777148443200,-10000.01,8.15e-05,2]
[421137621,1777148443387,-10000.01,8.15e-05,2]
[421137622,1777148443488,-10000.01,8.15e-05,2]
[421137623,1777148446039,-10000.01,8.15e-05,2]
[421137624,1777148452404,-1130.2754,8.15e-05,2]
[421137625,1777148513391,-802.9308,8.15e-05,2]
[421137626,1777148607328,-2373.1695,8.15e-05,2]
[421137627,1777148607354,-5253.671,8.15e-05,2]
[421137628,1777148684100,-1377.9003,8.15e-05,2]
[421137629,1777148706287,150.0,7.816e-05,2]
[421137630,1777148706345,150.0,7.889e-05,2]
[421137631,1777148706412,150.0,7.961e-05,2]
[421137632,1777148707298,150.0,7.816e-05,2]
[421137633,1777148709714,150.0,7.816e-05,2]
[421137634,1777148709751,150.0,7.903e-05,2]
[421137635,1777148709804,150.0,7.816e-05,2]
[421137636,1777148709835,150.0,7.99e-05,2]
[421137637,1777148713429,150.5557287,7.816e-05,2]
[421137638,1777148713518,150.0,7.816e-05,2]
[421137639,1777148713788,150.0,7.816e-05,2]
[421137640,1777148713838,150.0,7.883e-05,2]
[421137641,1777148713887,150.0,7.95e-05,2]
[421137642,1777148713949,150.0,8.017e-05,2]
[421137643,1777148716565,150.0,7.816e-05,2]
[421137644,1777148719067,150.0,7.816e-05,2]
[421137645,1777148719142,150.0,7.913e-05,2]
[421137646,1777148719189,150.0,8.009e-05,2]
[421137647,1777148725382,150.0,7.816e-05,2]
[421137648,1777148725439,150.0,7.889e-05,2]
[421137649,1777148725471,150.0,7.961e-05,2]
[421137650,1777148727544,150.0,7.816e-05,2]
[421137651,1777148727580,150.0,7.961e-05,2]
[421137652,1777148831481,570.49,7.757e-05,2]
[421137653,1777148871096,-150.0,8.034e-05,2]
[421137654,1777148871129,-150.0,8.034e-05,2]
[421137655,1777148871164,-150.0,8.034e-05,2]
[421137656,1777148871197,-255.0,8.034e-05,2]
[421137657,1777148871227,-150.0,8.077e-05,2]
[421137658,1777148871259,-150.0,8.084e-05,2]
[421137659,1777148871292,-150.0,8.106e-05,2]
[421137660,1777148871323,-150.0,8.106e-05,2]
[421137661,1777148871353,-150.0,8.106e-05,2]
[421137662,1777148871384,-150.0,8.106e-05,2]
[421137663,1777148871414,-150.0,8.106e-05,2]
[421137664,1777148871444,-160.0,8.15e-05,3]
[421137665,1777148871476,-411.0,8.15e-05,3]
[421137666,1777148871510,-268.9305,8.15e-05,2]
[421137667,1777148871541,-150.0,8.15e-05,2]
[421137668,1777148871571,-150.0,8.164e-05,2]
[421137669,1777148871601,-150.0,8.178e-05,2]
[421137670,1777148871636,-150.0,8.178e-05,2]
[421137671,1777148871667,-150.0,8.202e-05,2]
[421137672,1777148871697,-183.33,8.205e-05,2]
[421137673,1777148871728,-235.71,8.206e-05,2]
[421137674,1777148871759,-150.0,8.217e-05,2]
[421137675,1777148871789,-300.0,8.22e-05,2]
[421137676,1777148871821,-300.0,8.221e-05,2]
[421137677,1777148891456,392.73,7.757e-05,2]
[421137678,1777148891518,568.14,7.757e-05,2]
[421137679,1777148892018,-390.0,8.15e-05,3]
[421137680,1777148892225,-5352.8995,8.15e-05,2]
[421137681,1777148894255,-10000.01,8.15e-05,2]
[421137682,1777148894299,-10000.01,8.15e-05,2]
[421137683,1777148894314,-10000.01,8.15e-05,2]
[421137684,1777148894333,-10000.01,8.15e-05,2]
[421137685,1777148894374,-10000.01,8.15e-05,2]
[421137686,1777148894388,-10000.01,8.15e-05,2]
[421137687,1777148894403,-10000.01,8.15e-05,2]
[421137688,1777148894417,-10000.01,8.15e-05,2]
[421137689,1777148894970,-10000.01,8.15e-05,2]
[421137690,1777148895109,-10000.01,8.15e-05,2]
[421137691,1777148895225,-10000.01,8.15e-05,2]
[421137692,1777148895327,-10000.01,8.15e-05,2]
[421137693,1777148895415,-10000.01,8.15e-05,2]
[421137694,1777148906893,478.06,7.757e-05,2]
[421137695,1777148942094,478.05,7.757e-05,2]
[421137696,1777148942177,183.42,7.44e-05,2]
[421137697,1777148948258,171.0,7.757e-05,3]
[421137698,1777148952502,457.0,7.757e-05,3]
[421137699,1777148967121,568.24,7.757e-05,2]
[421137700,1777148981669,478.05,7.757e-05,2]
[421137701,1777149011138,434.0,7.757e-05,3]
[421137702,1777149011652,159.0,7.757e-05,3]
[421137703,1777149031958,-1200.0,8.148e-05,2]
[421137704,1777149031967,-300.0,8.148e-05,2]
[421137705,1777149031981,-300.0,8.148e-05,2]
[421137706,1777149031991,-300.0,8.148e-05,2]
[421137707,1777149032000,-300.0,8.148e-05,2]
[421137708,1777149032011,-1200.0,8.148e-05,2]
[421137709,1777149032020,-150.0,8.148e-05,2]
[421137710,1777149032030,-300.0,8.148e-05,2]
[421137711,1777149032042,-256.0,8.148e-05,2]
[421137712,1777149032051,-202.56098534,8.149e-05,2]
[421137713,1777149032060,-500.0,8.149e-05,2]
[421137714,1777149032070,-165.49518249,8.149e-05,2]
[421137715,1777149032080,-500.0,8.149e-05,2]
[421137716,1777149032090,-500.0,8.149e-05,2]
[421137717,1777149032099,-500.0,8.149e-05,2]
[421137718,1777149032108,-500.0,8.149e-05,2]
[421137719,1777149032117,-500.0,8.149e-05,2]
[421137720,1777149032127,-500.0,8.149e-05,2]
[421137721,1777149032136,-500.0,8.149e-05,2]
[421137722,1777149032146,-500.0,8.149e-05,2]
[421137723,1777149032156,-500.0,8.149e-05,2]
[421137724,1777149032165,-500.0,8.149e-05,2]
[421137725,1777149032175,-500.0,8.149e-05,2]
[421137726,1777149032184,-500.0,8.149e-05,2]
[421137727,1777149032194,-500.0,8.149e-05,2]
[421137728,1777149032204,-199.62250119,8.149e-05,2]
[421137729,1777149032213,-500.0,8.149e-05,2]
[421137730,1777149032224,-500.0,8.149e-05,2]
[421137731,1777149032235,-500.0,8.149e-05,2]
[421137732,1777149032244,-500.0,8.149e-05,2]
[421137733,1777149032254,-500.0,8.149e-05,2]
[421137734,1777149032264,-500.0,8.149e-05,2]
[421137735,1777149032273,-500.0,8.149e-05,2]
[421137736,1777149032283,-500.0,8.149e-05,2]
[421137737,1777149032292,-500.0,8.149e-05,2]
[421137738,1777149032302,-500.0,8.149e-05,2]
[421137739,1777149032312,-500.0,8.149e-05,2]
[421137740,1777149032322,-500.0,8.149e-05,2]
[421137741,1777149032331,-500.0,8.149e-05,2]
[421137742,1777149032341,-500.0,8.149e-05,2]
[421137743,1777149032351,-500.0,8.149e-05,2]
[421137744,1777149032361,-500.0,8.149e-05,2]
[421137746,1777149032371,-299.99999999,8.149e-05,2]
[421137748,1777149032381,-3058.64837661,8.15e-05,2]
[421137750,1777149032390,-693595.345,8.15e-05,2]
[421137752,1777149032400,-10834.378407,8.178e-05,2]
[421137753,1777149032409,-250.0,8.186e-05,2]
[421137754,1777149032419,-500.0,8.219e-05,2]
[421137755,1777149032428,-500.0,8.219e-05,2]
[421137756,1777149032437,-500.0,8.219e-05,2]
[421137757,1777149032448,-462.09165797,8.219e-05,2]
[421137758,1777149032458,-500.0,8.219e-05,2]
[421137759,1777149032467,-279.36,8.219e-05,14]
[421137760,1777149032478,-5000.0,8.221e-05,2]
[421137761,1777149032487,-578.20924308,8.223e-05,2]
[421137762,1777149032497,-1328.27659266,8.245e-05,2]
[421137763,1777149032507,-8882.6885148,8.245e-05,2]
[421137764,1777149032516,-670.58624095,8.245e-05,2]
[421137765,1777149032527,-200.0,8.245e-05,2]
[421137766,1777149032536,-151.0,8.245e-05,2]
[421137767,1777149032546,-743.50770149,8.245e-05,2]
[421137768,1777149032556,-174.61919141,8.245e-05,2]
[421137769,1777149032565,-500.0,8.245e-05,2]
[421137770,1777149032575,-153.84497306,8.25e-05,2]
[421137771,1777149032584,-150.0,8.251e-05,2]
[421137772,1777149032594,-150.0,8.251e-05,2]
[421137773,1777149032604,-150.0,8.251e-05,2]
[421137774,1777149032614,-150.0,8.251e-05,2]
[421137775,1777149032623,-150.0,8.251e-05,2]
[421137776,1777149032633,-150.0,8.251e-05,2]
[421137777,1777149032642,-184.99,8.262e-05,2]
[421137778,1777149032652,-150.0,8.284e-05,2]
[421137779,1777149032661,-150.0,8.299e-05,2]
[421137780,1777149032671,-5557.75644904,8.3e-05,2]
[421137781,1777149032681,-151.0,8.3e-05,2]
[421137782,1777149032690,-150.0,8.323e-05,2]
[421137783,1777149032700,-150.0,8.323e-05,2]
[421137784,1777149032710,-500.0,8.325e-05,2]
[421137785,1777149032720,-500.0,8.325e-05,2]
[421137786,1777149032730,-500.0,8.325e-05,2]
[421137787,1777149032740,-500.0,8.325e-05,2]
[421137788,1777149032750,-500.0,8.325e-05,2]
[421137789,1777149032759,-500.0,8.325e-05,2]
[421137790,1777149032769,-500.0,8.325e-05,2]
[421137791,1777149032778,-500.0,8.325e-05,2]
[421137792,1777149032787,-384.41903347,8.325e-05,2]
[421137793,1777149032797,-150.0,8.338e-05,2]
[421137794,1777149032807,-150.0,8.351e-05,2]
[421137795,1777149032817,-152.0,8.355e-05,7]
[421137796,1777149032827,-151.0,8.355e-05,2]
[421137797,1777149032836,-500.0,8.384e-05,2]
[421137798,1777149032846,-150.0,8.395e-05,2]
[421137799,1777149032856,-150.0,8.395e-05,2]
[421137800,1777149032865,-150.0,8.395e-05,2]
[421137801,1777149032875,-150.0,8.395e-05,2]
[421137802,1777149032884,-150.0,8.395e-05,2]
[421137803,1777149032894,-151.0,8.41e-05,2]
[421137804,1777149032902,-150.0,8.418e-05,2]
[421137805,1777149032917,-150.0,8.424e-05,2]
[421137806,1777149032927,-1783.16802012,8.443e-05,2]
[421137807,1777149032936,-151.0,8.465e-05,2]
[421137808,1777149032946,-150.0,8.468e-05,2]
[421137809,1777149032956,-150.0,8.468e-05,2]
[421137810,1777149032965,-150.0,8.468e-05,2]
[421137811,1777149032975,-150.0,8.485e-05,2]
[421137812,1777149032984,-150.0,8.492e-05,2]
[421137813,1777149032993,-152.0,8.493e-05,7]
[421137814,1777149033007,-152.0,8.493e-05,7]
[421137815,1777149033017,-152.0,8.502e-05,7]
[421137816,1777149033027,-152.0,8.502e-05,7]
[421137817,1777149033037,-434.0,8.507e-05,3]
[421137818,1777149033046,-150.0,8.511e-05,2]
[421137819,1777149033056,-500.0,8.519e-05,2]
[421137820,1777149033065,-151.0,8.52e-05,2]
[421137821,1777149033075,-385.59907011,8.526e-05,2]
[421137822,1777149033085,-150.0,8.54e-05,2]
[421137823,1777149033095,-150.0,8.54e-05,2]
[421137824,1777149033105,-150.0,8.54e-05,2]
[421137825,1777149033115,-150.0,8.551e-05,2]
[421137826,1777149033124,-1783.16802012,8.572e-05,2]
[421137827,1777149033134,-151.0,8.575e-05,2]
[421137828,1777149033144,-568.24,8.579e-05,2]
[421137829,1777149033154,-478.05,8.579e-05,2]
[421137830,1777149033164,-570.49,8.579e-05,2]
[421137831,1777149033174,-569.22,8.579e-05,2]
[421137832,1777149033183,-567.85,8.579e-05,2]
[421137833,1777149033193,-568.28,8.579e-05,2]
[421137834,1777149033202,-567.94,8.579e-05,2]
[421137835,1777149033215,-568.24,8.579e-05,2]
[421137836,1777149033225,-568.24,8.579e-05,2]
[421137837,1777149033235,-568.24,8.579e-05,2]
[421137838,1777149033245,-569.98,8.579e-05,2]
[421137839,1777149033258,-570.49,8.579e-05,2]
[421137840,1777149033268,-570.49,8.579e-05,2]
[421137841,1777149033277,-570.49,8.579e-05,2]
[421137842,1777149033287,-570.53,8.579e-05,2]
[421137843,1777149033297,-567.94,8.579e-05,2]
[421137844,1777149033306,-568.24,8.579e-05,2]
[421137845,1777149033315,-478.05,8.579e-05,2]
[421137846,1777149033325,-568.24,8.579e-05,2]
[421137847,1777149033335,-4992.05,8.579e-05,2]
[421137848,1777149033345,-312.854,8.579e-05,2]
[421137849,1777149033356,-570.2,8.579e-05,2]
[421137850,1777149033365,-568.24,8.579e-05,2]
[421137851,1777149033375,-568.24,8.579e-05,2]
[421137852,1777149033385,-570.49,8.579e-05,2]
[421137853,1777149033395,-478.05,8.579e-05,2]
[421137854,1777149033405,-478.05,8.579e-05,2]
[421137855,1777149033415,-479.82,8.579e-05,2]
[421137856,1777149033424,-568.24,8.579e-05,2]
[421137857,1777149033434,-568.24,8.584e-05,2]
[421137858,1777149033444,-568.24,8.584e-05,2]
[421137859,1777149033454,-150.0,8.588e-05,2]
[421137860,1777149033463,-150.0,8.598e-05,2]
[421137861,1777149033472,-864.67,8.599e-05,2]
[421137862,1777149033482,-194.728,8.6e-05,2]
[421137863,1777149033492,-59673.3801,8.6e-05,2]
[421137864,1777149033501,-2700.0,8.6e-05,3]
[421137865,1777149033511,-150.0,8.613e-05,2]
[421137866,1777149033520,-150.0,8.613e-05,2]
[421137867,1777149033530,-327.9870533,8.614e-05,2]
[421137868,1777149033540,-150.0,8.618e-05,2]
[421137869,1777149033550,-151.0,8.63e-05,2]
[421137870,1777149033560,-150.0,8.685e-05,2]
[421137871,1777149033570,-150.0,8.685e-05,2]
[421137872,1777149033581,-150.0,8.685e-05,2]
[421137873,1777149033590,-150.0,8.685e-05,2]
[421137874,1777149033600,-150.0,8.685e-05,2]
[421137875,1777149033610,-150.0,8.685e-05,2]
[421137876,1777149033619,-150.0,8.685e-05,2]
[421137877,1777149033629,-150.0,8.685e-05,2]
[421137878,1777149033639,-150.0,8.685e-05,2]
[421137879,1777149033648,-151.0,8.685e-05,2]
[421137880,1777149033659,-857.0,8.7e-05,5]
[421137881,1777149033669,-22243.38006475,8.7e-05,2]
[421137882,1777149033683,-781.95418243,8.7e-05,2]
[421137883,1777149033714,-78735.28777586,8.7e-05,2]
[421137884,1777149038237,-257.06604674,8.526e-05,2]
[421137885,1777149038247,-151674.20936946,8.7e-05,2]
[421137886,1777149038285,-12954.40917807,8.7e-05,2]
[421137896,1777149043126,-171.37736449,8.526e-05,2]
[421137897,1777149043136,-18262.58454381,8.7e-05,2]
[421137898,1777149043392,-291.40118115,8.688e-05,2]
[421137899,1777149043405,-3239.59881885,8.688e-05,2]
[421137900,1777149043415,-27239.50451631,8.7e-05,2]
[421137901,1777149043444,-2119.33276107,8.7e-05,2]
[421137904,1777149046527,-777.056514,8.7e-05,2]
[421137905,1777149046693,-427.46515504,8.7e-05,2]
[421137913,1777149103194,-300.0,8.149e-05,2]
[421137914,1777149103251,-256.0,8.149e-05,2]
[421137915,1777149103632,-5481.19,8.15e-05,2]
[421137916,1777149103722,-10000.01,8.15e-05,2]
[421137917,1777149103819,-10000.01,8.15e-05,2]
[421137918,1777149103865,-10000.01,8.15e-05,2]
[421137919,1777149103891,-10000.01,8.15e-05,2]
[421137920,1777149103992,-10000.01,8.15e-05,2]